{"text_format":"1","workbook":"xlsx","n_sheets":2,"sheets":["Angolari","Unità misura e prezzi"],"not_rendered":{"charts":0,"images":1,"macros":1,"external_links":0,"defined_names":5,"comments":0,"pivot_tables":0},"unopened":[],"bounds":{"document_bytes":16777216,"sheet_cells":100000,"rows_first":2000,"rows_last":500,"rows_between":2000,"halvings":0,"cell_chars":16384,"cell_head_chars":4096},"cells_cut":0,"cells_raw":0,"read":"whole","date_system":"1900"}

{"sheet":"Angolari","index":0,"n_rows":33,"n_cols":18,"rows_kept":33,"cut":false,"hidden":false,"merged":[[15,11,15,13],[16,11,16,13],[28,0,28,6],[21,0,21,2],[18,0,18,2],[17,11,17,13],[0,1,2,6],[31,0,31,6],[32,0,32,6],[29,3,29,5],[29,1,29,2],[16,0,16,2],[15,0,15,2],[17,0,17,2],[14,0,14,2],[7,0,12,6],[3,0,3,3],[3,6,6,6]]}
[null,{"$f":"VLOOKUP(A6,PRZ,5,FALSE)","v":"Applicazione di profilo per finestre 3D per sistema di isolamento a cappotto"}]
[]
[]
[]
["Tipologia di angolare"]
["Profilo per Finestre 3D"]
[]
[{"$f":"_xlfn.CONCAT('Unità misura e prezzi'!$G$4,VLOOKUP(Angolari!A6,PRZ,7,FALSE),'Unità misura e prezzi'!I4,'Unità misura e prezzi'!J4)","v":"Fornitura e posa in opera di profilo in pvc con nastro autoadesivo e rete in fibra di vetro per il collegamento tra i sistemi termocoibenti e i serramenti - tipo Profilo per Finestre 3D di Kerakoll.\nIl prezzo è per metro lineare effettivamente posto in opera. E' altresì compresa la fornitura e posa in opera di tutti i materiali sopra descritti e quanto altro occorre per dare il lavoro finito. Sono esclusi: il materiale per la rasatura, le indagini pre e post intervento; tutti i sussidi necessari per l'esecuzione dei lavori ricadenti all'interno dei costi della sicurezza indiretti."}]
[]
[]
[]
[]
[]
["DESCRIZIONE",null,null,"U.M.","QUANTITA'","PREZZO UNITARIO*","PREZZO COMPLETO"]
["RISORSE UMANE (RU) "]
["Applicazione dell'accessorio",null,null,null,null,null,null,null,"OPERAIO QUALIFICATO (MO1003)",null,null,{"$f":"INDEX(lavorazioni_secondostrato,(VLOOKUP($B$1,lavorazioni_secondostrato,2,FALSE)+1),3)","v":{"$error":"#NAME?"}}]
[{"$f":"IF(A16=0,\"\",$I$16)","v":"OPERAIO QUALIFICATO (MO1003)"},null,null,{"$f":"IFERROR(VLOOKUP(A17,PRZ,2,FALSE),\"\")","v":"H/mq"},0.02,{"$f":"IFERROR(VLOOKUP(A17,PRZ,3,FALSE),\"\")","v":29.25},{"$f":"IFERROR(E17*F17,\"\")","v":0.58499999999999996},null,null,null,null,{"$f":"IF(L16=0,\"\",$I$16)","v":{"$error":"#NAME?"}},null,null,{"$f":"IFERROR(VLOOKUP(L17,prezzi,2,FALSE),\"\")","v":""},{"$f":"IF(L17=$I$16,VLOOKUP(L16,#REF!,2,FALSE),IF(L17=$I$17,VLOOKUP(L15,#REF!,2,FALSE),\"\"))","v":{"$error":"#NAME?"}},{"$f":"IFERROR(VLOOKUP(L17,prezzi,3,FALSE),\"\")","v":""},{"$f":"IFERROR(P17*Q17,\"\")","v":""}]
[null,null,null,{"$f":"IFERROR(VLOOKUP(A18,prezzi,2,FALSE),\"\")","v":""},{"$f":"IF(A18=$I$16,VLOOKUP(#REF!,QTA,2,FALSE),\"\")","v":""},"sommano RU",{"$f":"SUM(G17:G17)","v":0.58499999999999996},null,null,null,null,null,null,null,"",{"$f":"IF(L18=$I$16,VLOOKUP(#REF!,#REF!,2,FALSE),IF(L18=$I$17,VLOOKUP(#REF!,#REF!,2,FALSE),\"\"))","v":{"$error":"#REF!"}},"sommano RU",{"$f":"SUM(R17:R17)","v":0}]
["PRODOTTI DA COSTRUZIONE (PR) ",null,null,{"$f":"IFERROR(VLOOKUP(A19,prezzi,2,FALSE),\"\")","v":""}]
[{"$f":"A6","v":"Profilo per Finestre 3D"},null,null,"m/m",1,{"$f":"IFERROR(VLOOKUP(A20,PRZ,3,FALSE),\"\")","v":7.48},{"$f":" IFERROR(F20*E20,\"\")","v":7.48}]
[null,null,null,"",null,"sommano PR",{"$f":"SUM(G20:G20)","v":7.48}]
["ATTREZZATURE (AT) "]
["NOLO DI STRUMENTAZIONE DA CANTIERE",null,null,"H/m",0.01,8,{"$f":" F23*E23","v":0.08}]
["TRASPORTO MATERIALI DI CONSUMO",null,null,"kg/m",{"$f":"0.2","v":0.2},{"$f":"0.02","v":0.02},{"$f":" F24*E24","v":4.0000000000000001E-3}]
[null,null,null,null,null,"sommano AT",{"$f":"SUM(G23:G24)","v":8.4000000000000005E-2}]
[null,null,null,null,null,"Costo Tecnico (CT)",{"$f":"SUM(G25,G21,G18)","v":8.1490000000000009}]
[null,null,null,null,null,"Costo indiretto (SG) 17,00%",{"$f":"G26*0.17","v":1.3853300000000002}]
[null,null,null,null,null,"Costo figurativo (U) 10,00%",{"$f":"(G26+G27)*0.1","v":0.95343300000000009}]
["* Prezzi materiali Kerakoll = Listino 07-2025. Prezzi manodopera = Prezziario DEI (I Semestre 2025) - Media Nazionale."]
[null,"RU+PR+AT+SG+U",null," PREZZO COMPLESSIVO AL METRO",null,null,{"$f":"G26+G27+G28","v":10.487763000000001}]
[]
["Voce di capitolato "]
[{"$f":"_xlfn.CONCAT('Unità misura e prezzi'!$G$4,VLOOKUP(Angolari!A6,PRZ,7,FALSE),'Unità misura e prezzi'!I4,'Unità misura e prezzi'!K4,VLOOKUP(Angolari!A6,PRZ,11,FALSE),'Unità misura e prezzi'!M4)","v":"Fornitura e posa in opera di profilo in pvc con nastro autoadesivo e rete in fibra di vetro per il collegamento tra i sistemi termocoibenti e i serramenti - tipo Profilo per Finestre 3D di Kerakoll.\nL'intervento si svolge nelle seguenti fasi: \na) Applicare il rasante (da contabilizzare a parte) e annegare le retine di collegamento. \nLa valutazione è espressa per metro lineare di profilo effettivamente posto in opera."}]

{"sheet":"Unità misura e prezzi","index":1,"n_rows":15,"n_cols":13,"rows_kept":15,"cut":false,"hidden":true,"merged":[]}
[]
[null,"Prodotto ","UM","Prezzo","Descrizione","Titolo tavola"]
[null,"OPERAIO QUALIFICATO (MO1003)","H/mq",29.25]
[null,"Angolare PVC - 80x120x2500 mm","m/m",1.3340000000000001,"Angolare rigido lineare in PVC per il rinforzo di spigoli con rete di collegamento ai sistemi termocoibenti ","Applicazione di angolare in PVC per rinforzo di spigoli per sistema di isolamento a cappotto ","Fornitura e posa in opera di ",{"$f":"_xlfn.CONCAT(LOWER(E4),\" - tipo \",B4)","v":"angolare rigido lineare in pvc per il rinforzo di spigoli con rete di collegamento ai sistemi termocoibenti  - tipo Angolare PVC - 80x120x2500 mm"}," di Kerakoll.\n","Il prezzo è per metro lineare effettivamente posto in opera. E' altresì compresa la fornitura e posa in opera di tutti i materiali sopra descritti e quanto altro occorre per dare il lavoro finito. Sono esclusi: il materiale per la rasatura, le indagini pre e post intervento; tutti i sussidi necessari per l'esecuzione dei lavori ricadenti all'interno dei costi della sicurezza indiretti.","L'intervento si svolge nelle seguenti fasi: \na) Applicare il rasante (da contabilizzare a parte) e annegare le retine di collegamento. \nLa valutazione è espressa per metro lineare di ","angolare"," effettivamente posto in opera."]
[null,"Angolare PVC - 100x150x2500 mm","m/m",1.502,"Angolare rigido lineare in PVC per il rinforzo di spigoli con rete di collegamento ai sistemi termocoibenti ","Applicazione di angolare in PVC per rinforzo di spigoli per sistema di isolamento a cappotto ",null,{"$f":"_xlfn.CONCAT(LOWER(E5),\" - tipo \",B5)","v":"angolare rigido lineare in pvc per il rinforzo di spigoli con rete di collegamento ai sistemi termocoibenti  - tipo Angolare PVC - 100x150x2500 mm"},null,null,null,"angolare"]
[null,"Angolare Alluminio - 80x120x2500 mm","m/m",1.4359999999999999,"Angolare rigido lineare in alluminio per il rinforzo di spigoli con rete di collegamento ai sistemi termocoibenti ","Applicazione di angolare in alluminio per rinforzo di spigoli per sistema di isolamento a cappotto ",null,"angolare rigido lineare in alluminio per il rinforzo di spigoli con rete di collegamento ai sistemi termocoibenti  - tipo Angolare Alluminio - 80x120x2500 mm",null,null,null,"angolare"]
[null,"Angolare PVC a Vista","m/m",2.8319999999999999,"Angolare rigido lineare in PVC con guida esterna sporgente per il rinforzo di spigoli con rete di collegamento ai sistemi termocoibenti ","Applicazione di angolare in PVC per rinforzo di spigoli per sistema di isolamento a cappotto ",null,{"$f":"_xlfn.CONCAT(LOWER(E7),\" - tipo \",B7)","v":"angolare rigido lineare in pvc con guida esterna sporgente per il rinforzo di spigoli con rete di collegamento ai sistemi termocoibenti  - tipo Angolare PVC a Vista"},null,null,null,"angolare"]
[null,"Angolare Universale","m/m",2.3119999999999998,"Angolare modellabile in PVC per il rinforzo di spigoli con rete di collegamento ai sistemi termocoibenti ","Applicazione di angolare in PVC per rinforzo di spigoli per sistema di isolamento a cappotto ",null,"angolare modellabile in pvc per il rinforzo di spigoli con rete di collegamento ai sistemi termocoibenti  - tipo Angolare Universale",null,null,null,"angolare"]
[null,"Angolare PVC per Arco","m/m",3.7120000000000002,"Angolare in PVC specifico per il rinforzo di spigoli di superfici curve con rete di collegamento ai sistemi termocoibenti ","Applicazione di angolare in PVC per arco per sistema di isolamento a cappotto ",null,"angolare in pvc specifico per il rinforzo di spigoli di superfici curve con rete di collegamento ai sistemi termocoibenti  - tipo Angolare PVC per Arco",null,null,null,"angolare"]
[null,"Rompigoccia Invisibile","m/m",4.41,"Rompigoccia in PVC sovraverniciabile con rete in fibra di vetro e gocciolatoio per il collegamento ai sistemi termocoibenti","Applicazione di rompigoccia in PVC rompigoccia invisibile per sistema di isolamento a cappotto",null,"rompigoccia in pvc sovraverniciabile con rete in fibra di vetro e gocciolatoio per il collegamento ai sistemi termocoibenti - tipo Rompigoccia Invisibile",null,null,null,"rompigoccia"]
[null,"Rompigoccia a Vista con Bandella Strip","m/m",2.194,"Rompigoccia in PVC con rete in fibra di vetro e gocciolatoio per il collegamento ai sistemi termocoibenti","Applicazione di rompigoccia in PVC rompigoccia a vista per sistema di isolamento a cappotto",null,"rompigoccia in pvc con rete in fibra di vetro e gocciolatoio per il collegamento ai sistemi termocoibenti - tipo Rompigoccia a Vista con Bandella Strip",null,null,null,"rompigoccia"]
[null,"Profilo per Finestre 3D","m/m",7.48,"Profilo in PVC con nastro autoadesivo e rete in fibra di vetro per il collegamento tra i sistemi termocoibenti e i serramenti","Applicazione di profilo per finestre 3D per sistema di isolamento a cappotto",null,"profilo in pvc con nastro autoadesivo e rete in fibra di vetro per il collegamento tra i sistemi termocoibenti e i serramenti - tipo Profilo per Finestre 3D",null,null,null,"profilo"]
[null,"Profilo per Davanzale","m/m",6.1840000000000002,"Profilo in PVC con nastro autoadesivo e rete in fibra di vetro per la sigillatura impermeabile dei collegamenti tra i sistemi termocoibenti e i serramenti","Applicazione di profilo per davanzale per sistema di isolamento a cappotto ",null,"profilo in pvc con nastro autoadesivo e rete in fibra di vetro per la sigillatura impermeabile dei collegamenti tra i sistemi termocoibenti e i serramenti - tipo Profilo per Davanzale",null,null,null,"profilo"]
[null,"Rete Preformata per Scanalature a Triangolo","m/m",4.3339999999999996,"Rete preformata in fibra di vetro resistente agli alcali per la continuità dello strato di rasatura armata su lesene e scanalature a triangolo","Applicazione di rete preformata per scanalature a triangolo per sistema di isolamento a cappotto",null,"rete preformata in fibra di vetro resistente agli alcali per la continuità dello strato di rasatura armata su lesene e scanalature a triangolo - tipo Rete Preformata per Scanalature a Triangolo",null,null,null,"rete preformata"]
[null,"Rete Preformata per Scanalature a Trapezio","m/m",4.3339999999999996,"Rete preformata in fibra di vetro resistente agli alcali per la continuità dello strato di rasatura armata su lesene e scanalature a trapezio","Applicazione di rete preformata per scanalature a trapezio per sistema di isolamento a cappotto",null,"rete preformata in fibra di vetro resistente agli alcali per la continuità dello strato di rasatura armata su lesene e scanalature a trapezio - tipo Rete Preformata per Scanalature a Trapezio",null,null,null,"rete preformata"]